bitfinex/quotes_BTCUSD_20251124
["timestamp","ask_amount","ask_price","bid_price","bid_amount"]
[1763982017291,0.02175124,86247.0,86240.0,0.01886884]
[1763982017510,0.00011728,86258.0,86240.0,0.01886884]
[1763982017511,0.02175124,86246.0,86240.0,0.01886884]
[1763982017826,0.02175124,86245.0,86240.0,0.01886884]
[1763982018122,0.02175124,86244.0,86236.0,0.0313378]
[1763982018323,0.02175124,86243.0,86236.0,0.0699999]
[1763982018528,0.02175124,86242.0,86236.0,0.0699999]
[1763982018729,0.00011728,86258.0,86237.0,0.05210249]
[1763982018940,0.02173814,86257.0,86250.0,0.01886884]
[1763982019088,0.02173814,86256.0,86251.0,0.01001682]
[1763982019289,0.02173814,86255.0,86250.0,0.01886884]
[1763982019526,0.02173814,86254.0,86250.0,0.00999999]
[1763982019759,0.02173814,86253.0,86250.0,0.00999999]
[1763982020089,0.02173814,86252.0,86250.0,0.00999999]
[1763982020258,0.02173814,86251.0,86250.0,0.00999999]
[1763982023794,0.00011728,86258.0,86250.0,0.00999999]
[1763982024027,0.0217095,86257.0,86250.0,0.02567457]
[1763982024147,0.0217095,86256.0,86250.0,0.02567457]
[1763982024346,0.0217095,86255.0,86250.0,0.02567457]
[1763982024549,0.00011728,86258.0,86252.0,0.05210249]
[1763982026194,0.00011728,86258.0,86252.0,0.07529035]
[1763982026509,0.00011728,86258.0,86254.0,0.05210249]
[1763982027153,0.00011728,86258.0,86256.0,0.05210249]
[1763982027562,0.00011728,86258.0,86252.0,0.05210249]
[1763982030948,0.00011728,86258.0,86251.0,0.0812994]
[1763982031150,0.00011728,86258.0,86252.0,0.03486525]
[1763982031552,0.00011728,86258.0,86251.0,0.0812994]
[1763982031752,0.00011728,86258.0,86251.0,0.11616465]
[1763982032474,0.00011728,86258.0,86252.0,0.02318786]
[1763982033281,0.00011728,86258.0,86251.0,0.11616465]
[1763982034685,0.00011728,86258.0,86252.0,0.02318786]
[1763982035051,0.00011728,86258.0,86251.0,0.11616465]
[1763982035052,0.00011728,86258.0,86251.0,0.03486525]
[1763982035284,0.02167245,86257.0,86250.0,0.00999999]
[1763982035654,0.02167311,86256.0,86250.0,0.01886884]
[1763982035840,0.02167311,86255.0,86250.0,0.00999999]
[1763982035995,0.00011728,86258.0,86250.0,0.00999999]
[1763982036196,0.02167323,86257.0,86250.0,0.01886884]
[1763982036542,0.02167323,86256.0,86250.0,0.00999999]
[1763982036841,0.02167323,86255.0,86250.0,0.01886884]
[1763982036988,0.02167323,86254.0,86250.0,0.00999999]
[1763982037201,0.00011728,86258.0,86250.0,0.00999999]
[1763982037202,0.02167323,86253.0,86250.0,0.00999999]
[1763982037398,0.02167323,86252.0,86250.0,0.00999999]
[1763982037602,0.02167323,86251.0,86240.0,0.00999999]
[1763982037807,0.02167323,86250.0,86240.0,0.00999999]
[1763982038013,0.02167323,86249.0,86240.0,0.01886884]
[1763982038235,0.02167323,86248.0,86240.0,0.00999999]
[1763982038464,0.01094758,86247.0,86245.0,0.0812994]
[1763982038638,0.00011728,86258.0,86251.0,0.05210249]
[1763982038844,0.00011728,86258.0,86252.0,0.02318786]
[1763982039052,0.00011728,86258.0,86251.0,0.05210249]
[1763982039285,0.00011728,86258.0,86252.0,0.00709713]
[1763982039487,0.00011728,86258.0,86252.0,0.04195821]
[1763982040403,0.00011728,86258.0,86254.0,0.05210249]
[1763982040611,0.00011728,86258.0,86256.0,0.05210249]
[1763982040815,0.00011728,86258.0,86257.0,0.07528901]
[1763982041095,0.00011728,86258.0,86257.0,0.09222398]
[1763982041650,0.00011728,86258.0,86257.0,0.05210249]
[1763982042083,0.00011728,86258.0,86257.0,0.07528901]
[1763982045478,0.00011728,86258.0,86257.0,0.10655171]
[1763982050906,0.02185672,86258.0,86257.0,0.10655171]
[1763982051322,0.02185672,86258.0,86257.0,0.0332627]
[1763982051526,0.02185672,86258.0,86257.0,0.0312627]
[1763982051730,0.02185672,86258.0,86250.0,0.00999999]
[1763982051931,0.00011728,86258.0,86257.0,0.002]
[1763982052132,0.0218619,86258.0,86250.0,0.01886884]
[1763982052342,0.02174462,86257.0,86250.0,0.00999999]
[1763982052482,0.00011728,86258.0,86250.0,0.01886884]
[1763982052483,0.02174462,86256.0,86250.0,0.01886884]
[1763982052692,0.00011728,86258.0,86250.0,0.01886884]
[1763982052693,0.02174462,86255.0,86250.0,0.01886884]
[1763982052893,0.02174462,86254.0,86250.0,0.01886884]
[1763982053114,0.02174462,86253.0,86250.0,0.00999999]
[1763982053391,0.02174462,86252.0,86250.0,0.00999999]
[1763982053526,0.02174462,86251.0,86250.0,0.00999999]
[1763982054906,0.02174462,86251.0,86250.0,0.01099999]
[1763982056577,0.02174462,86257.0,86250.0,0.01099999]
[1763982056791,0.02174462,86256.0,86250.0,0.01099999]
[1763982056998,0.02174462,86255.0,86250.0,0.01986884]
[1763982057201,0.02174462,86254.0,86250.0,0.00986885]
[1763982057423,0.00011728,86258.0,86250.0,0.00986885]
[1763982057424,0.02174462,86253.0,86252.0,0.05210249]
[1763982058503,0.02174462,86257.0,86252.0,0.05310249]
[1763982058720,0.02174462,86256.0,86252.0,0.05310249]
[1763982058926,0.02174462,86255.0,86252.0,0.05210249]
[1763982059128,0.02174462,86254.0,86252.0,0.05310249]
[1763982059345,0.02174462,86253.0,86252.0,0.06654268]
[1763982060363,0.02174462,86253.0,86252.0,0.06554268]
[1763982060627,0.02174462,86257.0,86252.0,0.08873054]
[1763982060943,0.02174462,86257.0,86252.0,0.08973054]
[1763982061155,0.02174462,86257.0,86252.0,0.08873054]
[1763982061359,0.02174462,86257.0,86252.0,0.05310249]
[1763982061793,0.02174462,86257.0,86252.0,0.05210249]
[1763982061995,0.02174462,86257.0,86252.0,0.05410249]
[1763982062349,0.02174462,86257.0,86252.0,0.05210249]
[1763982063969,0.02175049,86256.0,86252.0,0.05210249]
[1763982064173,0.02175049,86255.0,86252.0,0.05210249]
[1763982064524,0.02117082,86254.0,86252.0,0.06832956]
[1763982064680,0.00011728,86258.0,86252.0,0.06832956]
[1763982065158,0.00011728,86258.0,86250.0,0.01886884]
[1763982065364,0.00011728,86258.0,86252.0,0.001]
[1763982065875,0.05,86289.0,86252.0,0.001]
[1763982066176,0.02505699,86288.0,86252.0,0.001]
[1763982066352,0.02505699,86287.0,86260.0,0.00886885]
[1763982066537,0.02505699,86286.0,86270.0,0.00886885]
[1763982066739,0.02505699,86285.0,86270.0,0.00886885]
[1763982066939,0.04356206,86290.0,86270.0,0.00886885]
[1763982066940,0.02505699,86284.0,86270.0,0.00886885]
[1763982067274,0.02505699,86283.0,86270.0,0.00886885]
[1763982067439,0.02505699,86282.0,86270.0,0.00886885]
[1763982067640,0.04356206,86290.0,86270.0,0.00886885]
[1763982067641,0.02505699,86281.0,86270.0,0.00886885]
[1763982067836,0.002,86287.0,86270.0,0.00886885]
[1763982068043,0.001,86285.0,86270.0,0.00886885]
[1763982068242,0.02605916,86284.0,86270.0,0.00886885]
[1763982068443,0.02505916,86283.0,86270.0,0.00886885]
[1763982068644,0.02505916,86282.0,86270.0,0.00886885]
[1763982068853,0.02605916,86281.0,86270.0,0.00886885]
[1763982069027,0.001,86281.0,86270.0,0.00886885]
[1763982069244,0.02506383,86280.0,86270.0,0.00886885]
[1763982069460,0.02506383,86279.0,86270.0,0.00886885]
[1763982069676,0.002,86281.0,86270.0,0.00886885]
[1763982069875,0.02506491,86280.0,86260.0,0.01886884]
[1763982070096,0.02506491,86279.0,86270.0,0.00886885]
[1763982070303,0.001,86283.0,86260.0,0.01886884]
[1763982070635,0.02506477,86282.0,86270.0,0.00886885]
[1763982070840,0.02506477,86281.0,86260.0,0.00999999]
[1763982071030,0.002,86280.0,86270.0,0.00886885]
[1763982071234,0.001,86280.0,86270.0,0.00886885]
[1763982071597,0.001,86283.0,86270.0,0.00886885]
[1763982071823,0.001,86282.0,86270.0,0.00886885]
[1763982072041,0.001,86282.0,86260.0,0.00999999]
[1763982072214,0.001,86282.0,86270.0,0.00886885]
[1763982073022,0.001,86280.0,86270.0,0.00886885]
[1763982073253,0.002,86280.0,86270.0,0.00886885]
[1763982073458,0.001,86280.0,86270.0,0.00886885]
[1763982074275,0.002,86280.0,86270.0,0.00886885]
[1763982076393,0.02176037,86279.0,86270.0,0.00886885]
[1763982076599,0.02176037,86278.0,86270.0,0.00886885]
[1763982076803,0.02176037,86277.0,86270.0,0.00886885]
[1763982077002,0.02176037,86276.0,86270.0,0.00886885]
[1763982077206,0.02176037,86275.0,86270.0,0.00886885]
[1763982077445,0.02176037,86274.0,86260.0,0.01886884]
[1763982077592,0.02176037,86273.0,86260.0,0.01886884]
[1763982077967,0.02176037,86272.0,86260.0,0.01886884]
[1763982078172,0.02176037,86271.0,86261.0,0.05210249]
[1763982078370,0.02176037,86270.0,86262.0,0.03028231]
[1763982078574,0.02176037,86269.0,86262.0,0.03028231]
[1763982078776,0.02176037,86268.0,86262.0,0.03028231]
[1763982078977,0.001,86277.0,86270.0,0.00886885]
[1763982079104,0.02176175,86276.0,86270.0,0.00886885]
[1763982079308,0.02276175,86275.0,86270.0,0.00886885]
[1763982079649,0.02176175,86274.0,86262.0,0.03028231]
[1763982079851,0.02176175,86273.0,86261.0,0.05210249]
[1763982080083,0.02176175,86272.0,86261.0,0.05210249]
[1763982080286,0.02176175,86271.0,86262.0,0.02318518]
[1763982080459,0.02176175,86270.0,86263.0,0.00941565]
[1763982080664,0.02176175,86269.0,86264.0,0.02318464]
[1763982080956,0.02176175,86268.0,86264.0,0.02318464]
[1763982081126,0.02176175,86267.0,86264.0,0.02318464]
[1763982081417,0.02176175,86266.0,86264.0,0.02318464]
[1763982081595,0.001,86272.0,86265.0,0.01035716]
[1763982081776,0.02176466,86271.0,86261.0,0.05210249]
[1763982081984,0.02176466,86270.0,86261.0,0.05210249]
[1763982082177,0.02176466,86269.0,86262.0,0.08693132]
[1763982082385,0.02176466,86268.0,86263.0,0.01579027]
[1763982082602,0.02176466,86267.0,86263.0,0.01579027]
[1763982082808,0.02176466,86266.0,86263.0,0.01579027]
[1763982083011,0.02176466,86265.0,86263.0,0.01579027]
[1763982083217,0.02176466,86264.0,86263.0,0.01579027]
[1763982083848,0.02176466,86264.0,86263.0,0.09107767]
[1763982085979,0.02215581,86264.0,86263.0,0.09107767]
[1763982086561,0.02215581,86264.0,86263.0,0.09307767]
[1763982091785,0.00039115,86264.0,86263.0,0.09307767]
[1763982092187,0.17501131,86304.0,86264.0,0.05210249]
[1763982092428,0.17501131,86304.0,86266.0,0.05210249]
[1763982092429,0.04679091,86303.0,86266.0,0.05210249]
[1763982092564,0.04679091,86302.0,86267.0,0.02318383]
[1763982092760,0.04679091,86301.0,86280.0,0.00886885]
[1763982092987,0.04679091,86300.0,86280.0,0.00886885]
[1763982093218,0.04679091,86299.0,86280.0,0.00886885]
[1763982093422,0.02174277,86298.0,86280.0,0.00886885]
[1763982093584,0.02174277,86297.0,86280.0,0.00886885]
[1763982093920,0.02174277,86296.0,86280.0,0.00886885]
[1763982094223,0.02174277,86295.0,86280.0,0.00886885]
[1763982094381,0.02174277,86294.0,86280.0,0.00886885]
[1763982094586,0.19448023,86304.0,86280.0,0.00886885]
[1763982094587,0.02174277,86293.0,86280.0,0.00886885]
[1763982094920,0.04679162,86292.0,86270.0,0.00999999]
[1763982095119,0.02757796,86303.0,86270.0,0.00999999]
[1763982095120,0.04679162,86291.0,86270.0,0.00999999]
[1763982095324,0.04679162,86290.0,86270.0,0.01886884]
[1763982095524,0.02174277,86289.0,86270.0,0.01886884]
[1763982095737,0.02174277,86288.0,86270.0,0.01886884]
[1763982095990,0.02757796,86303.0,86270.0,0.01886884]
[1763982095991,0.02174277,86287.0,86270.0,0.01886884]
[1763982096117,0.02174277,86286.0,86270.0,0.01886884]
[1763982096314,0.02174277,86285.0,86270.0,0.01886884]
[1763982096534,0.001,86292.0,86270.0,0.01886884]
[1763982096535,0.02174277,86284.0,86270.0,0.01886884]
[1763982096770,0.0217466,86283.0,86270.0,0.01886884]
[1763982096969,0.0217466,86282.0,86270.0,0.01886884]
[1763982097200,0.0217466,86281.0,86270.0,0.01886884]
[1763982097357,0.0217466,86280.0,86270.0,0.01886884]
[1763982097713,0.0217466,86279.0,86270.0,0.01886884]
[1763982097919,0.0217466,86278.0,86270.0,0.01886884]
[1763982098070,0.0217466,86277.0,86270.0,0.01886884]
[1763982098274,0.0217466,86276.0,86270.0,0.01886884]
[1763982098475,0.0217466,86275.0,86270.0,0.01886884]
[1763982098642,0.0217466,86274.0,86270.0,0.01886884]
[1763982098836,0.0217466,86273.0,86270.0,0.01886884]
[1763982099115,0.0217466,86272.0,86270.0,0.01886884]
[1763982099296,0.0217466,86272.0,86250.0,0.05210249]
[1763982099297,0.0217466,86271.0,86260.0,0.01886884]
[1763982099457,0.02174926,86270.0,86263.0,0.05210249]
[1763982099662,0.02174926,86269.0,86265.0,0.05210249]
[1763982099880,0.00011728,86271.0,86266.0,0.0231841]
[1763982099881,0.02174926,86268.0,86266.0,0.0231841]
[1763982100120,0.02174926,86267.0,86266.0,0.0231841]
[1763982101950,0.02174926,86267.0,86266.0,0.05310249]
[1763982102084,0.00011728,86271.0,86267.0,0.05210249]
[1763982102287,0.00606512,86313.0,86290.0,0.01886884]
[1763982102489,0.00024758,86297.0,86290.0,0.01886884]
[1763982102757,0.02174783,86296.0,86290.0,0.01886884]
[1763982103031,0.02464296,86313.0,86290.0,0.01886884]
[1763982103032,0.02174783,86295.0,86290.0,0.01886884]
[1763982103250,0.02174783,86294.0,86290.0,0.01886884]
[1763982103446,0.02200299,86293.0,86290.0,0.00886885]
[1763982103580,0.02174783,86292.0,86280.0,0.01886884]
[1763982103796,0.02174783,86291.0,86280.0,0.01886884]
[1763982103996,0.02174783,86290.0,86280.0,0.01886884]
[1763982104196,0.02174783,86289.0,86280.0,0.01886884]
[1763982104404,0.02174783,86288.0,86280.0,0.01886884]
[1763982104608,0.00025516,86293.0,86280.0,0.01886884]
[1763982104609,0.02174783,86287.0,86280.0,0.01886884]
[1763982104851,0.02174783,86286.0,86280.0,0.01886884]
[1763982105024,0.02174783,86285.0,86280.0,0.01886884]
[1763982105227,0.02174783,86284.0,86280.0,0.01886884]
[1763982105430,0.02174783,86283.0,86280.0,0.00999999]
[1763982105624,0.02174783,86282.0,86280.0,0.01099999]
[1763982105900,0.02174783,86281.0,86280.0,0.01099999]
[1763982106076,0.02174783,86281.0,86280.0,0.00999999]
[1763982106276,0.02174783,86281.0,86280.0,0.01099999]
[1763982106640,0.02174783,86281.0,86280.0,0.00999999]
[1763982106834,0.02174783,86281.0,86270.0,0.00886885]
[1763982107080,0.02174783,86280.0,86271.0,0.05210249]
[1763982107334,0.02174783,86279.0,86273.0,0.05210249]
[1763982107503,0.02174783,86278.0,86273.0,0.05210249]
[1763982107709,0.02174783,86277.0,86273.0,0.05210249]
[1763982107910,0.02174783,86276.0,86273.0,0.05210249]
[1763982108088,0.02174783,86275.0,86273.0,0.05990934]
[1763982108412,0.00025516,86293.0,86280.0,0.00886885]
[1763982108587,0.02174925,86292.0,86280.0,0.00886885]
[1763982108797,0.02174925,86291.0,86280.0,0.00886885]
[1763982109000,0.02174925,86290.0,86280.0,0.00886885]
[1763982109167,0.02174925,86289.0,86280.0,0.00886885]
[1763982109519,0.02174925,86288.0,86280.0,0.00886885]
[1763982109742,0.00025516,86293.0,86280.0,0.00886885]
[1763982109743,0.02174925,86287.0,86280.0,0.00886885]
[1763982109940,0.02174925,86286.0,86280.0,0.00886885]
[1763982110148,0.02174925,86285.0,86280.0,0.00886885]
[1763982110352,0.02174925,86284.0,86275.0,0.05210249]
[1763982110560,0.02174925,86283.0,86276.0,0.03770079]
[1763982110763,0.02174925,86282.0,86276.0,0.02318141]
[1763982110889,0.02174925,86281.0,86276.0,0.02318141]
[1763982111132,0.02174925,86280.0,86276.0,0.02318141]
[1763982111335,0.02174925,86279.0,86276.0,0.02318141]
[1763982111544,0.02174925,86278.0,86277.0,0.02318114]
[1763982111951,0.02174925,86278.0,86277.0,0.07528363]
[1763982112146,0.02174925,86278.0,86277.0,0.08359268]
[1763982117463,0.00025516,86293.0,86278.0,0.05210249]
[1763982117663,0.02173756,86292.0,86284.0,0.08693132]
[1763982117868,0.02173756,86291.0,86285.0,0.02317899]
[1763982118145,0.02173756,86290.0,86285.0,0.03507691]
[1763982118390,0.02173756,86289.0,86285.0,0.03507691]
[1763982118559,0.00025516,86293.0,86285.0,0.02317899]
[1763982118786,0.0217328,86292.0,86286.0,0.02317873]
[1763982118993,0.0217328,86291.0,86286.0,0.02317873]
[1763982119194,0.0217328,86290.0,86286.0,0.02317873]
[1763982119430,0.0217328,86289.0,86286.0,0.02317873]
[1763982119645,0.0217328,86288.0,86286.0,0.02317873]
[1763982119811,0.0217328,86287.0,86282.0,0.05210249]
[1763982120013,0.0217328,86286.0,86282.0,0.07510719]
[1763982120210,0.0217328,86285.0,86282.0,0.07510719]
[1763982120536,0.0217328,86284.0,86282.0,0.07510719]
[1763982120689,0.0217328,86283.0,86282.0,0.07510719]
[1763982120892,0.0217328,86283.0,86278.0,0.07383529]
[1763982121092,0.00025516,86293.0,86281.0,0.05210249]
[1763982121293,0.02172863,86292.0,86282.0,0.001]
[1763982121494,0.02172863,86291.0,86283.0,0.05210249]
[1763982121697,0.02172863,86290.0,86283.0,0.05210249]
[1763982121922,0.02172863,86289.0,86281.0,0.05210249]
[1763982122129,0.02172863,86288.0,86281.0,0.01879445]
[1763982122383,0.02172863,86288.0,86280.0,0.01886884]
[1763982122384,0.02345374,86287.0,86280.0,0.01886884]
[1763982122519,0.02172723,86286.0,86280.0,0.01886884]
[1763982122723,0.01819512,86295.0,86290.0,0.00886885]
[1763982123739,0.00069024,86306.0,86290.0,0.00886885]
[1763982123939,0.01888537,86306.0,86290.0,0.00886885]
[1763982124164,0.001,86295.0,86290.0,0.00886885]
[1763982124379,0.002,86295.0,86290.0,0.00886885]
[1763982124932,0.001,86295.0,86290.0,0.00886885]
[1763982126729,0.002,86295.0,86290.0,0.00886885]
[1763982126951,0.002,86295.0,86290.0,0.01886884]
[1763982127553,0.001,86295.0,86290.0,0.01886884]
[1763982128028,0.01871705,86313.0,86300.0,0.00886885]
[1763982128270,0.00011728,86313.0,86300.0,0.00886885]
[1763982128872,0.01884949,86313.0,86300.0,0.00886885]
[1763982129253,0.02505442,86312.0,86300.0,0.00886885]
[1763982129453,0.01884949,86313.0,86300.0,0.00886885]
[1763982129717,0.02505442,86312.0,86300.0,0.00886885]
[1763982129910,0.01984949,86313.0,86300.0,0.00886885]
[1763982130113,0.02505442,86312.0,86300.0,0.00886885]
[1763982130311,0.01983223,86313.0,86300.0,0.00886885]
[1763982130513,0.02605717,86312.0,86300.0,0.00886885]
[1763982130702,0.01983223,86313.0,86300.0,0.00886885]
[1763982130861,0.06928971,86312.0,86300.0,0.00886885]
[1763982131097,0.02505849,86311.0,86300.0,0.00886885]
[1763982131418,0.02604123,86310.0,86300.0,0.00886885]
[1763982131621,0.02529988,86309.0,86300.0,0.00886885]
[1763982131776,0.02505849,86308.0,86300.0,0.00886885]
[1763982131963,0.02604123,86308.0,86290.0,0.01886884]
[1763982132160,0.00024139,86307.0,86290.0,0.01886884]
[1763982132609,0.02506338,86306.0,86290.0,0.01886884]
[1763982132799,0.02084949,86313.0,86290.0,0.01886884]
[1763982132800,0.02506338,86305.0,86290.0,0.01886884]
[1763982133130,0.00122413,86305.0,86290.0,0.01886884]
[1763982133735,0.00025512,86301.0,86290.0,0.01886884]
[1763982134532,0.02175645,86300.0,86290.0,0.01886884]
[1763982134742,0.02175645,86299.0,86290.0,0.01886884]
[1763982134943,0.02175645,86298.0,86290.0,0.01886884]
[1763982135138,0.02175645,86297.0,86290.0,0.01886884]
[1763982135484,0.02175645,86296.0,86290.0,0.01886884]
[1763982135613,0.02175645,86295.0,86290.0,0.01886884]
[1763982135827,0.02175645,86294.0,86290.0,0.01886884]
[1763982136031,0.02175645,86293.0,86290.0,0.01886884]
[1763982136238,0.02175645,86292.0,86290.0,0.00999999]
[1763982136436,0.00147925,86301.0,86290.0,0.00999999]
[1763982136437,0.02175645,86291.0,86290.0,0.00999999]
[1763982137025,0.02175645,86291.0,86290.0,0.01099999]
[1763982137251,0.02175645,86291.0,86290.0,0.00999999]
[1763982137673,0.02175645,86291.0,86290.0,0.01099999]
[1763982137877,0.02175645,86291.0,86290.0,0.001]
[1763982141605,0.00122413,86311.0,86290.0,0.001]
[1763982141606,0.00122413,86298.0,86290.0,0.00986885]
[1763982141805,0.00122413,86298.0,86290.0,0.00998613]
[1763982142382,0.00122413,86298.0,86290.0,0.00898613]
[1763982144970,0.00129537,86312.0,86290.0,0.00898613]
[1763982145262,0.02507318,86311.0,86290.0,0.00898613]
[1763982145436,0.02507318,86310.0,86300.0,0.00886885]
[1763982145643,0.02507318,86309.0,86290.0,0.00898613]
[1763982145835,0.02507318,86308.0,86300.0,0.00886885]
[1763982145981,0.00129537,86311.0,86300.0,0.00886885]
[1763982146194,0.02507352,86310.0,86300.0,0.00886885]
[1763982146401,0.02507352,86309.0,86300.0,0.00886885]
[1763982146728,0.02507352,86308.0,86300.0,0.00886885]
[1763982146934,0.001,86309.0,86290.0,0.00898613]
[1763982147113,0.02507391,86308.0,86300.0,0.00886885]
[1763982147320,0.00233408,86311.0,86300.0,0.00886885]
[1763982147516,0.001,86309.0,86300.0,0.00886885]
[1763982147723,0.02507385,86308.0,86300.0,0.00886885]
[1763982147929,0.001,86308.0,86300.0,0.00886885]
[1763982149192,0.001,86309.0,86300.0,0.00886885]
[1763982150024,0.03716375,86319.0,86300.0,0.00886885]
[1763982150215,0.001,86308.0,86300.0,0.00886885]
[1763982150608,0.001,86309.0,86300.0,0.00886885]
[1763982151011,0.00333408,86309.0,86300.0,0.00886885]
[1763982151220,0.00168629,86309.0,86300.0,0.00886885]
[1763982151434,0.00133408,86308.0,86300.0,0.00886885]
[1763982151588,0.02507602,86307.0,86300.0,0.00886885]
[1763982151789,0.001,86309.0,86300.0,0.00886885]
[1763982151995,0.0013551,86307.0,86300.0,0.00886885]
[1763982153145,0.0250783,86306.0,86300.0,0.00886885]
[1763982153352,0.0013551,86307.0,86300.0,0.00886885]
[1763982153554,0.04684733,86306.0,86300.0,0.00886885]
[1763982153774,0.02176903,86305.0,86300.0,0.00886885]
[1763982154078,0.02176903,86304.0,86290.0,0.00898613]
[1763982154381,0.02176903,86303.0,86290.0,0.00898613]
[1763982154584,0.02176903,86302.0,86290.0,0.00898613]
[1763982154783,0.02176903,86301.0,86290.0,0.00898613]
[1763982155010,0.02176903,86300.0,86290.0,0.00898613]
[1763982155216,0.02176903,86299.0,86290.0,0.00898613]
[1763982155343,0.02176903,86298.0,86290.0,0.00898613]
[1763982155548,0.02176903,86297.0,86290.0,0.00898613]
[1763982155763,0.02176903,86296.0,86290.0,0.00898613]
[1763982156114,0.02176903,86295.0,86290.0,0.00898613]
[1763982156390,0.02176903,86294.0,86290.0,0.00011728]
[1763982156613,0.02176903,86293.0,86290.0,0.00011728]
[1763982156789,0.02176903,86292.0,86290.0,0.00011728]
[1763982156944,0.02176903,86291.0,86290.0,0.00011728]
[1763982159185,0.02177743,86291.0,86290.0,0.00011728]
[1763982165603,0.02177906,86291.0,86290.0,0.00011728]
[1763982171323,0.02177906,86291.0,86290.0,0.03083475]
[1763982171574,0.02177906,86291.0,86290.0,0.03183475]
[1763982173510,0.02177906,86291.0,86290.0,0.00111728]
[1763982179075,0.02177906,86291.0,86290.0,0.05321977]
[1763982179293,0.02177906,86291.0,86290.0,0.07639742]
[1763982179694,0.02177906,86291.0,86290.0,0.09817648]
[1763982180120,0.01897018,86319.0,86310.0,0.01886884]
[1763982180299,0.0002,86340.0,86310.0,0.01886884]
[1763982180300,0.0468277,86318.0,86310.0,0.01886884]
[1763982180503,0.02176025,86317.0,86310.0,0.01886884]
[1763982180667,0.00031885,86311.0,86310.0,0.00999999]
[1763982181020,0.0220791,86311.0,86310.0,0.00999999]
[1763982182285,0.0220791,86311.0,86309.0,0.0348452]
[1763982182492,0.02176025,86310.0,86309.0,0.0348452]
[1763982183377,0.02144653,86310.0,86309.0,0.0348452]
[1763982184413,0.02144653,86310.0,86309.0,0.0358452]
[1763982184853,0.02144653,86310.0,86309.0,0.0348452]
[1763982185045,0.323,86341.0,86320.0,0.01886884]
[1763982185263,0.02144653,86336.0,86320.0,0.01886884]
[1763982185462,0.02502935,86335.0,86320.0,0.01886884]
[1763982185696,0.02144653,86336.0,86320.0,0.01886884]
[1763982185697,0.02502935,86334.0,86320.0,0.01886884]
[1763982185897,0.02502935,86333.0,86320.0,0.01886884]
[1763982186074,0.02144653,86336.0,86320.0,0.01886884]
[1763982186287,0.0190016,86333.0,86320.0,0.01886884]
[1763982186550,0.02144653,86336.0,86320.0,0.01886884]
[1763982186752,0.0183988,86333.0,86320.0,0.01886884]
[1763982186945,0.00011723,86333.0,86320.0,0.01886884]
[1763982188025,0.01869093,86333.0,86320.0,0.01886884]
[1763982188230,0.00011723,86333.0,86320.0,0.01886884]
[1763982188433,0.00063763,86321.0,86320.0,0.01886884]
[1763982189278,0.00063763,86321.0,86320.0,0.00999999]
[1763982192366,0.00063763,86321.0,86311.0,0.05210249]
[1763982192566,0.00063763,86321.0,86310.0,0.01886884]
[1763982192567,0.01913738,86333.0,86320.0,0.03389286]
[1763982193311,0.01913738,86333.0,86321.0,0.05210249]
[1763982194499,0.02013738,86333.0,86321.0,0.05210249]
[1763982194697,0.02013738,86333.0,86322.0,0.01953738]
[1763982195377,0.02113738,86333.0,86322.0,0.01953738]
[1763982195824,0.02113738,86333.0,86320.0,0.00999999]
[1763982195825,0.02013738,86333.0,86320.0,0.00999999]
[1763982196043,0.02013738,86333.0,86314.0,0.02113738]
[1763982196510,0.02013738,86333.0,86320.0,0.00886885]
[1763982196932,0.02169554,86332.0,86320.0,0.00886885]
[1763982197146,0.02169554,86331.0,86311.0,0.03484516]
[1763982197337,0.02013738,86333.0,86320.0,0.00886885]
[1763982197338,0.02169554,86330.0,86320.0,0.00886885]
[1763982197545,0.02169554,86329.0,86320.0,0.00886885]
[1763982197758,0.02169554,86328.0,86320.0,0.00886885]
[1763982197977,0.02169554,86327.0,86320.0,0.00886885]
[1763982198200,0.02113738,86333.0,86320.0,0.00886885]
[1763982198201,0.00063763,86321.0,86320.0,0.00886885]
[1763982198589,0.02233317,86321.0,86310.0,0.01886884]
[1763982198776,0.02169554,86320.0,86310.0,0.01886884]
[1763982198983,0.02169554,86327.0,86320.0,0.00886885]
[1763982199142,0.02170494,86326.0,86320.0,0.00886885]
[1763982199351,0.02170494,86325.0,86320.0,0.00886885]
[1763982199545,0.02170494,86324.0,86310.0,0.01886884]
[1763982199783,0.02170494,86323.0,86310.0,0.01886884]
[1763982199976,0.02170494,86322.0,86320.0,0.00886885]
[1763982200177,0.02170494,86321.0,86320.0,0.00886885]
[1763982200505,0.001,86325.0,86320.0,0.00886885]
[1763982200656,0.02170494,86324.0,86320.0,0.00886885]
[1763982200850,0.02170494,86323.0,86320.0,0.00886885]
[1763982201093,0.02270494,86322.0,86320.0,0.00886885]
[1763982201298,0.02270494,86322.0,86310.0,0.01886884]
[1763982201299,0.02170494,86321.0,86310.0,0.01886884]
[1763982202507,0.02170494,86320.0,86310.0,0.01886884]
[1763982202732,0.02170494,86319.0,86310.0,0.01886884]
[1763982203045,0.02170494,86318.0,86310.0,0.01886884]
[1763982203348,0.02170494,86317.0,86310.0,0.01886884]
[1763982203556,0.02170494,86316.0,86310.0,0.01886884]
[1763982203856,0.02170494,86315.0,86310.0,0.01886884]
[1763982204059,0.00031885,86311.0,86310.0,0.00999999]
[1763982204232,0.02202379,86311.0,86310.0,0.00999999]
[1763982206437,0.02202379,86311.0,86310.0,0.07480743]
[1763982206767,0.02202379,86311.0,86310.0,0.08128817]
[1763982207065,0.02202379,86311.0,86310.0,0.08228817]
[1763982209047,0.00031885,86311.0,86310.0,0.08228817]
[1763982209638,0.02205977,86311.0,86310.0,0.07480743]
[1763982210954,0.00031885,86311.0,86310.0,0.07480743]
[1763982211359,0.03126914,86353.0,86310.0,0.07480743]
[1763982211360,0.02202379,86348.0,86340.0,0.01886884]
[1763982211560,0.02173451,86347.0,86340.0,0.01886884]
[1763982211788,0.02173451,86346.0,86340.0,0.01886884]
[1763982211991,0.02173451,86345.0,86340.0,0.01886884]
[1763982212190,0.02173451,86344.0,86340.0,0.01886884]
[1763982212360,0.02173451,86343.0,86340.0,0.00999999]
[1763982212692,0.02173451,86342.0,86340.0,0.00999999]
[1763982212906,0.00239069,86347.0,86330.0,0.00886885]
[1763982212907,0.02173451,86341.0,86330.0,0.00886885]
[1763982213136,0.02173451,86340.0,86330.0,0.01886884]
[1763982213363,0.02173451,86339.0,86330.0,0.01886884]
[1763982213561,0.02173451,86338.0,86330.0,0.01886884]
[1763982213763,0.02173451,86337.0,86330.0,0.01886884]
[1763982213965,0.05,86355.0,86330.0,0.01886884]
[1763982214175,0.11233279,86354.0,86330.0,0.01039068]
[1763982214388,0.01818521,86347.0,86330.0,0.01925953]
[1763982214608,0.001,86340.0,86330.0,0.01039068]
[1763982214765,0.001,86340.0,86330.0,0.01925953]
[1763982214977,0.01818521,86347.0,86330.0,0.01925953]
[1763982215316,0.02503205,86346.0,86330.0,0.01925953]
[1763982215519,0.001,86339.0,86330.0,0.00039069]
[1763982215710,0.01818521,86347.0,86330.0,0.01925953]
[1763982215910,0.02503171,86346.0,86330.0,0.01925953]
[1763982216111,0.01918521,86347.0,86330.0,0.01925953]
[1763982216319,0.02503152,86346.0,86330.0,0.01925953]